fUSD/lending_fUSD_20240105
["ID","MTS","AMOUNT","RATE_DAILY","PERIOD"]
[310349886,1704490239555,-707.15,0.00027945,2]
[310349887,1704490239564,-181.11,0.00028046,2]
[310349888,1704490239574,-152.03,0.00028052,2]
[310349889,1704490239586,-155.13604866,0.00028059,2]
[310349890,1704490239596,-727.98,0.00028096,2]
[310349891,1704490239606,-171.1,0.0002811,2]
[310349892,1704490239615,-206.0,0.00028204,10]
[310349893,1704490239625,-161.93,0.00028232,2]
[310349894,1704490239634,-152.03,0.00028254,2]
[310349895,1704490239643,-162.99,0.00028298,2]
[310349896,1704490239652,-171.1,0.00028347,2]
[310349897,1704490239661,-391.45,0.00028451,2]
[310349898,1704490239670,-301.20793522,0.00028454,2]
[310349899,1704490239679,-318.56342494,0.00028454,2]
[310349900,1704490239690,-155.13604866,0.00028454,2]
[310349901,1704490239699,-944.6804996,0.00028455,2]
[310349902,1704490239709,-152.03,0.00028455,2]
[310349903,1704490239718,-161.93,0.0002852,2]
[310349904,1704490239727,-166.52,0.00028549,2]
[310349905,1704490239736,-171.1,0.00028585,2]
[310349906,1704490239746,-152.03,0.00028657,2]
[310349907,1704490239755,-7940.58,0.00028676,2]
[310349908,1704490239764,-189.0,0.00028695,2]
[310349909,1704490239773,-3182.01197305,0.00028702,2]
[310349910,1704490239782,-870.75,0.00028706,2]
[310349911,1704490239791,-180.53,0.00028796,2]
[310349912,1704490239800,-13445.9752,0.000288,2]
[310349913,1704490239810,-152.54192595,0.000288,4]
[310349914,1704490239819,-171.1,0.00028822,2]
[310349915,1704490239828,-155.13604866,0.0002885,2]
[310349916,1704490239838,-384.55,0.0002885,2]
[310349917,1704490239847,-152.03,0.00028859,2]
[310349918,1704490239857,-150.0,0.00028872,2]
[310349919,1704490239866,-417.1,0.00028872,2]
[310349920,1704490239876,-150.0,0.00028872,2]
[310349921,1704490239885,-313.61,0.00028872,2]
[310349922,1704490239894,-150.0,0.00028872,2]
[310349923,1704490239903,-150.0,0.00028872,2]
[310349924,1704490239913,-313.61,0.00028872,2]
[310349925,1704490239923,-417.1,0.00028872,2]
[310349926,1704490239932,-417.1,0.00028872,2]
[310349927,1704490239943,-313.61,0.00028872,2]
[310349928,1704490239952,-150.0,0.00028872,2]
[310349929,1704490239962,-52296.25416599,0.000289,2]
[310349930,1704490239996,-1916.48685601,0.000289,2]
[310349931,1704490240008,-559.97082617,0.000289,2]
[310349932,1704490240037,-20861.51989629,0.000289,2]
[310349933,1704490240049,-43936.02842532,0.000289,2]
[310349934,1704490240060,-3345.75912601,0.000289,2]
[310349935,1704490240106,-2858.74173732,0.000289,2]
[310349936,1704490240118,-1741.31701954,0.000289,2]
[310349937,1704490240332,3849.22022627,0.00022999,2]
[310349945,1704490240626,-263.220664,0.000289,2]
[310349946,1704490240640,-1679.94573047,0.000289,2]
[310349947,1704490240700,-5647.61387611,0.000289,2]
[310349948,1704490240712,-637.75880654,0.000289,2]
[310349949,1704490241351,-3037.08558605,0.00023,2]
[310349950,1704490241361,-109255.38287023,0.000289,2]
[310349951,1704490241371,-15532.5062,0.000289,2]
[310349952,1704490241381,-100000.0,0.000289,2]
[310349953,1704490241391,-162.99,0.0002892,2]
[310349954,1704490241400,-1000.0,0.00028961,7]
[310349955,1704490241410,-313.61,0.00028978,2]
[310349956,1704490241420,-288.88018117,0.0002899,2]
[310349957,1704490241430,-155.4439,0.00028995,2]
[310349958,1704490241439,-2605.2545687,0.00028998,2]
[310349959,1704490241448,-1131.17602535,0.00028998,2]
[310349960,1704490241458,-158.21861741,0.00028998,2]
[310349961,1704490241467,-376.79366639,0.00028998,2]
[310349962,1704490241478,-155.19605017,0.00028998,2]
[310349963,1704490241488,-353.0862598,0.00028998,2]
[310349965,1704490241497,-157.4532893,0.00028998,2]
[310349967,1704490241507,-437.95871489,0.00028998,2]
[310349969,1704490241516,-207.10094658,0.00028998,2]
[310349971,1704490241527,-324.1902635,0.00028998,2]
[310349973,1704490241536,-880.97266104,0.00028998,2]
[310349975,1704490241546,-1647.67379549,0.00028998,2]
[310349977,1704490241556,-202.84578995,0.00028998,2]
[310349978,1704490241566,-409.3889,0.00028998,2]
[310349979,1704490241576,-840.51157263,0.00028998,2]
[310349980,1704490241586,-755.68067117,0.00028998,2]
[310349981,1704490241596,-251.44969674,0.00028998,2]
[310349982,1704490241606,-206.40875822,0.00028998,2]
[310349983,1704490241616,-242.95459507,0.00028998,2]
[310349984,1704490241626,-155.31701115,0.00028998,2]
[310349985,1704490241637,-155.40316722,0.00028998,2]
[310349986,1704490241647,-112923.57664725,0.00029,2]
[310349987,1704490241657,-2487.72504954,0.00029001,2]
[310349988,1704490241666,-155.0,0.000292,2]
[310349989,1704490241677,-155.13604866,0.00029245,2]
[310349990,1704490241686,-671.96251305,0.000293,4]
[310349991,1704490241696,-170.18,0.00029537,2]
[310349992,1704490241707,-162.99,0.00029542,2]
[310349993,1704490241720,-201.76112699,0.000296,2]
[310349994,1704490241731,-150.0,0.00029603,2]
[310349995,1704490241744,-155.13604866,0.00029641,2]
[310349996,1704490241756,-150.0,0.00029685,2]
[310349997,1704490241768,-417.1,0.00029694,2]
[310349998,1704490241778,-150.0,0.00029694,2]
[310349999,1704490241787,-313.61,0.00029694,2]
[310350000,1704490241797,-300.0,0.00029694,2]
[310350001,1704490241807,-150.0,0.00029694,2]
[310350002,1704490241818,-150.0,0.00029694,2]
[310350003,1704490241828,-150.0,0.00029694,2]
[310350004,1704490241837,-150.0,0.00029694,2]
[310350005,1704490241847,-150.0,0.00029694,2]
[310350006,1704490241857,-150.0,0.00029694,2]
[310350007,1704490241869,-417.1,0.00029694,2]
[310350008,1704490241880,-313.61,0.00029694,2]
[310350009,1704490241890,-150.0,0.00029694,2]
[310350010,1704490241899,-313.61,0.00029694,2]
[310350011,1704490241909,-833.97,0.00029694,2]
[310350012,1704490241919,-417.1,0.00029694,2]
[310350013,1704490241929,-150.0,0.00029694,2]
[310350014,1704490241941,-163.73,0.00029694,2]
[310350015,1704490241953,-474.0,0.00029699,5]
[310350016,1704490241965,-45585.41550098,0.00029699,2]
[310350017,1704490241976,-31443.0423,0.000297,2]
[310350018,1704490241987,-20249.63574281,0.000297,2]
[310350019,1704490241998,-9272.88354829,0.000297,2]
[310350020,1704490242008,-163.46,0.00029701,2]
[310350021,1704490242019,-150.0,0.00029727,2]
[310350022,1704490242029,-150.0,0.00029728,2]
[310350023,1704490242043,-150.0,0.0002973,2]
[310350024,1704490242054,-1500.0,0.0002973,2]
[310350025,1704490242066,-150.0,0.00029733,2]
[310350026,1704490242077,-150.0,0.00029735,2]
[310350027,1704490242088,-150.0,0.00029735,2]
[310350028,1704490242099,-150.0,0.00029738,2]
[310350029,1704490242110,-150.0,0.00029741,2]
[310350030,1704490242122,-150.0,0.00029744,2]
[310350031,1704490242137,-150.0,0.00029744,2]
[310350032,1704490242148,-150.0,0.00029744,2]
[310350033,1704490242161,-150.0,0.00029745,2]
[310350034,1704490242172,-150.0,0.00029746,2]
[310350035,1704490242182,-150.0,0.00029748,2]
[310350036,1704490242192,-179.89309702,0.00029749,2]
[310350037,1704490242203,-150.0,0.00029751,2]
[310350038,1704490242213,-150.0,0.00029755,2]
[310350039,1704490242224,-150.0,0.00029755,2]
[310350040,1704490242235,-150.0,0.00029755,2]
[310350041,1704490242245,-1500.0,0.0002976,2]
[310350042,1704490242257,-152.54192592,0.0002976,4]
[310350043,1704490242268,-150.0,0.00029762,2]
[310350044,1704490242277,-150.0,0.00029767,2]
[310350045,1704490242288,-150.0,0.00029767,2]
[310350046,1704490242296,-150.0,0.00029768,2]
[310350047,1704490242306,-150.0,0.0002977,2]
[310350048,1704490242316,-150.0,0.00029774,2]
[310350049,1704490242326,-150.0,0.00029776,2]
[310350050,1704490242336,-150.0,0.00029779,2]
[310350051,1704490242346,-150.0,0.0002978,2]
[310350052,1704490242355,-150.0,0.00029782,2]
[310350053,1704490242365,-150.0,0.00029786,2]
[310350054,1704490242375,-150.0,0.00029787,2]
[310350055,1704490242386,-150.0,0.00029787,2]
[310350056,1704490242396,-150.0,0.00029791,2]
[310350057,1704490242406,-150.0,0.00029791,2]
[310350058,1704490242416,-150.0,0.00029792,2]
[310350059,1704490242426,-1000.0,0.00029796,2]
[310350060,1704490242436,-150.0,0.00029796,2]
[310350061,1704490242445,-152.62150823,0.00029797,2]
[310350062,1704490242455,-500.0,0.00029798,2]
[310350063,1704490242465,-1000.0,0.00029798,2]
[310350064,1704490242474,-181.11,0.00029799,2]
[310350065,1704490242483,-194.23034656,0.000298,2]
[310350066,1704490242493,-203.1762752,0.000298,2]
[310350067,1704490242502,-150.0,0.00029801,2]
[310350068,1704490242512,-150.0,0.00029817,2]
[310350069,1704490242522,-150.0,0.0002982,2]
[310350070,1704490242531,-150.0,0.0002982,2]
[310350071,1704490242541,-150.0,0.00029823,2]
[310350072,1704490242552,-150.0,0.00029824,2]
[310350073,1704490242563,-150.0,0.00029824,2]
[310350074,1704490242573,-150.0,0.00029826,2]
[310350075,1704490242582,-384.55,0.00029829,2]
[310350076,1704490242592,-150.0,0.0002983,2]
[310350077,1704490242601,-150.0,0.00029837,2]
[310350078,1704490242610,-150.0,0.00029842,2]
[310350079,1704490242620,-150.0,0.00029843,2]
[310350080,1704490242631,-150.0,0.00029846,2]
[310350081,1704490242640,-239.88101956,0.00029846,2]
[310350082,1704490242649,-150.0,0.00029848,2]
[310350083,1704490242658,-150.0,0.00029849,2]
[310350084,1704490242668,-1500.0,0.0002985,2]
[310350085,1704490242677,-150.0,0.0002985,2]
[310350086,1704490242687,-150.0,0.00029851,2]
[310350087,1704490242697,-150.0,0.00029856,2]
[310350089,1704490242706,-150.0,0.00029858,2]
[310350090,1704490242716,-150.0,0.00029858,2]
[310350091,1704490242725,-150.0,0.00029864,2]
[310350093,1704490242734,-150.0,0.00029864,2]
[310350094,1704490242744,-150.0,0.00029867,2]
[310350095,1704490242753,-150.0,0.00029869,2]
[310350096,1704490242762,-300.0,0.0002987,2]
[310350097,1704490242772,-1500.0,0.00029872,2]
[310350098,1704490242781,-150.0,0.00029873,2]
[310350100,1704490242790,-150.0,0.00029875,2]
[310350102,1704490242800,-150.0,0.00029877,2]
[310350104,1704490242809,-150.0,0.00029877,2]
[310350106,1704490242818,-150.0,0.00029882,2]
[310350107,1704490242828,-150.0,0.00029885,2]
[310350108,1704490242837,-245.3018834,0.00029888,2]
[310350109,1704490242846,-150.0,0.0002989,2]
[310350110,1704490242855,-1487.6333109,0.0002989,2]
[310350112,1704490242864,-1500.0,0.00029894,2]
[310350114,1704490242874,-500.0,0.00029895,2]
[310350116,1704490242883,-150.0,0.00029897,2]
[310350118,1704490242892,-150.0,0.00029897,2]
[310350120,1704490242902,-5238.84191555,0.00029897,2]
[310350122,1704490242911,-155.0,0.00029898,2]
[310350124,1704490242920,-1909.21560663,0.00029898,2]
[310350126,1704490242930,-1174.57417902,0.00029898,2]
[310350128,1704490242940,-284.48599854,0.00029898,2]
[310350129,1704490242950,-300.0,0.00029899,2]
[310350130,1704490242959,-7500.0,0.000299,2]
[310350131,1704490242969,-187.31424575,0.000299,2]
[310350132,1704490242978,-172.81965992,0.000299,2]
[310350133,1704490242987,-4277.50456365,0.000299,5]
[310350134,1704490242996,-1583.21230595,0.000299,2]
[310350135,1704490243005,-201.76112698,0.000299,2]
[310350136,1704490243014,-170.36317764,0.000299,2]
[310350137,1704490243025,-150.0,0.00029902,2]
[310350138,1704490243038,-5000.00000001,0.00029904,2]
[310350139,1704490243047,-150.0,0.00029906,2]
[310350140,1704490243057,-150.0,0.0002991,2]
[310350141,1704490243069,-150.0,0.00029911,2]
[310350142,1704490243251,-150.0,0.00029916,2]
[310350143,1704490243261,-300.0,0.00029917,2]
[310350144,1704490243270,-150.0,0.00029918,2]
[310350145,1704490243280,-150.0,0.0002992,2]
[310350146,1704490243289,-150.0,0.00029924,2]
[310350147,1704490243298,-1500.0,0.00029925,2]
[310350148,1704490243308,-150.0,0.00029929,2]
[310350150,1704490243317,-150.0,0.0002993,2]
[310350152,1704490243327,-150.0,0.00029931,2]
[310350154,1704490243336,-286.44273519,0.00029931,2]
[310350156,1704490243345,-150.0,0.00029932,2]
[310350158,1704490243355,-150.0,0.00029932,2]
[310350160,1704490243364,-150.0,0.00029933,2]
[310350163,1704490243374,-150.0,0.00029934,2]
[310350165,1704490243383,-150.0,0.00029937,2]
[310350166,1704490243392,-150.0,0.00029938,2]
[310350167,1704490243402,-150.0,0.00029943,2]
[310350169,1704490243411,-150.0,0.00029944,2]
[310350171,1704490243420,-150.0,0.00029947,2]
[310350173,1704490243429,-150.0,0.00029947,2]
[310350175,1704490243438,-150.0,0.00029947,2]
[310350177,1704490243446,-150.0,0.00029949,2]
[310350179,1704490243456,-150.0,0.0002995,2]
[310350181,1704490243465,-150.0,0.00029951,2]
[310350182,1704490243474,-150.0,0.00029955,2]
[310350183,1704490243483,-150.0,0.00029956,2]
[310350184,1704490243492,-150.0,0.00029956,2]
[310350185,1704490243502,-150.0,0.00029957,2]
[310350186,1704490243511,-150.0,0.00029958,2]
[310350187,1704490243520,-150.0,0.00029959,2]
[310350188,1704490243530,-150.0,0.00029961,2]
[310350189,1704490243539,-150.0,0.00029961,2]
[310350190,1704490243548,-800.0,0.00029963,5]
[310350191,1704490243558,-150.0,0.00029966,2]
[310350192,1704490243567,-150.0,0.00029974,2]
[310350193,1704490243577,-150.0,0.00029986,2]
[310350194,1704490243587,-150.0,0.00029989,2]
[310350195,1704490243596,-200.0,0.0002999,2]
[310350196,1704490243606,-150.0,0.0002999,2]
[310350197,1704490243615,-150.0,0.00029991,2]
[310350198,1704490243626,-826.94285372,0.00029997,2]
[310350199,1704490243635,-230.34,0.00029999,2]
[310350200,1704490243644,-52834.29662465,0.0003,2]
[310350201,1704490243659,-4758.50602701,0.0003,2]
[310350202,1704490244474,-150.0,0.00029729,2]
[310350203,1704490244484,-150.0,0.00029762,2]
[310350204,1704490244493,-150.0,0.00029766,2]
[310350205,1704490244503,-150.0,0.00029802,2]
[310350206,1704490244512,-150.0,0.0002981,2]
[310350207,1704490244521,-150.0,0.00029834,2]
[310350208,1704490244531,-150.0,0.00029855,2]
[310350209,1704490244540,-150.0,0.00029874,2]
[310350210,1704490244551,-150.0,0.00029891,2]
[310350211,1704490244560,-292.22665966,0.00029904,2]
[310350212,1704490244569,-150.0,0.00029911,2]
[310350213,1704490244579,-150.0,0.00029953,2]
[310350214,1704490244589,-232339.82852914,0.0003,2]
[310350215,1704490244598,-5000.0,0.0003,3]
[310350216,1704490244608,-155.0,0.0003,2]
[310350217,1704490244618,-307.37637032,0.0003,7]
[310350218,1704490244631,-20778.83037632,0.0003,4]
[310350219,1704490244640,-708.99299084,0.0003,7]
[310350220,1704490244650,-3681.52031968,0.0003,2]
[310350221,1704490244659,-150.1,0.0003,3]
[310350222,1704490244668,-27141.03262647,0.0003,4]
[310350223,1704490244682,-6716.64434957,0.0003,4]
[310350224,1704490244699,-9562.73604497,0.0003,4]
[310350225,1704490244776,-37423.1180597,0.0003,4]
[310350226,1704490244788,-2766.39563642,0.0003,4]
[310350227,1704490244799,-386.96454,0.0003,4]
[310350235,1704490245961,-150.0,0.00028872,2]
[310350236,1704490245971,-145333.31106346,0.0003,4]
[310350237,1704490245982,-155.56735236,0.0003,4]
[310350238,1704490245991,-290.4910976,0.0003,2]
[310350239,1704490246001,-155.31240011,0.0003,4]
[310350240,1704490246010,-335.48851,0.0003,2]
[310350241,1704490246019,-335.48851,0.0003,2]
[310350242,1704490246029,-335.48852,0.0003,2]
[310350243,1704490246038,-335.48851,0.0003,2]
[310350244,1704490246047,-335.48851,0.0003,2]
[310350245,1704490246056,-335.48851,0.0003,2]
[310350246,1704490246066,-223.38161452,0.0003,2]
[310350247,1704490246078,-2132.75775408,0.0003,2]
[310350248,1704490246090,-200.0,0.00030031,2]
[310350249,1704490246099,-5000.0,0.00030036,2]
[310350250,1704490246109,-587.875,0.00030036,3]
[310350251,1704490246170,-155.13604866,0.00030036,2]
[310350252,1704490246179,-175.01190244,0.00030036,2]
[310350253,1704490246188,-268.22635344,0.00030036,2]
[310350254,1704490246198,-439.57915004,0.00030036,2]
[310350255,1704490246207,-203.1762752,0.00030133,2]
[310350256,1704490246218,-224.42278242,0.00030134,4]
[310350257,1704490246228,-541.01094614,0.00030134,4]
[310350258,1704490246237,-416.58046654,0.00030134,4]
[310350259,1704490246247,-261.90649391,0.00030134,4]
[310350260,1704490246256,-388.10011343,0.00030134,4]
[310350261,1704490246265,-214.2734706,0.00030134,4]
[310350262,1704490246274,-155.0,0.00030134,4]
[310350263,1704490246284,-188.36867811,0.00030134,4]
[310350264,1704490246293,-1526.93693149,0.00030134,4]
[310350265,1704490246309,-1242.30406851,0.00030134,4]
[310350267,1704490246318,-155.0,0.00030134,4]
[310350269,1704490246328,-151.0,0.00030136,7]
[310350270,1704490246337,-151.0,0.00030136,7]
[310350271,1704490246346,-151.0,0.00030136,7]
[310350272,1704490246356,-151.0,0.00030136,7]
[310350273,1704490246365,-151.0,0.00030136,7]
[310350274,1704490246374,-257.40572,0.00030136,7]
[310350275,1704490246385,-1566.0,0.00030136,7]
[310350276,1704490246395,-1275.91845269,0.00030136,7]
[310350277,1704490246407,-290.08154731,0.00030136,7]
[310350278,1704490246418,-1566.0,0.00030136,7]
[310350279,1704490246429,-1566.0,0.00030136,7]
[310350280,1704490246439,-203.768899,0.00030136,7]
[310350281,1704490246449,-203.768899,0.00030136,7]
[310350282,1704490246459,-203.768899,0.00030136,7]
[310350283,1704490246469,-203.768899,0.00030136,7]
[310350284,1704490246480,-723.39,0.00030136,2]
[310350285,1704490246490,-500.0,0.00030136,2]
[310350286,1704490246502,-298.98158071,0.00030136,2]
[310350287,1704490246513,-500.0,0.00030136,2]
[310350288,1704490246525,-500.0,0.00030136,2]
[310350289,1704490246534,-500.0,0.00030136,2]
[310350290,1704490246544,-499.48929009,0.00030136,2]
[310350291,1704490246554,-500.0,0.00030136,2]
[310350292,1704490246564,-500.0,0.00030136,2]
[310350293,1704490246575,-500.0,0.00030136,2]
[310350294,1704490246585,-500.0,0.00030136,2]
[310350295,1704490246595,-500.0,0.00030136,2]
[310350296,1704490246604,-386.0,0.00030136,2]
[310350297,1704490246614,-500.0,0.00030136,2]
[310350298,1704490246625,-500.0,0.00030136,2]
[310350299,1704490246635,-500.0,0.00030136,2]
[310350300,1704490246645,-468.80892539,0.00030136,2]
[310350301,1704490246657,-500.0,0.00030136,2]
[310350302,1704490246669,-1648.02,0.00030136,2]
[310350303,1704490246681,-175.47515646,0.00030136,2]
[310350304,1704490246692,-500.0,0.00030136,2]
[310350305,1704490246703,-500.0,0.00030136,2]
[310350306,1704490246714,-500.0,0.00030136,2]
[310350307,1704490246725,-500.0,0.00030136,2]
[310350308,1704490246735,-500.0,0.00030136,2]
[310350309,1704490246746,-500.0,0.00030136,2]
[310350310,1704490246757,-500.0,0.00030136,2]
[310350311,1704490246766,-500.0,0.00030136,2]
[310350312,1704490246777,-500.0,0.00030136,2]
[310350313,1704490246788,-500.0,0.00030136,2]
[310350314,1704490246799,-500.0,0.00030136,2]
[310350315,1704490246810,-500.0,0.00030136,2]
[310350316,1704490246819,-500.0,0.00030136,2]
[310350317,1704490246829,-500.0,0.00030136,2]
[310350318,1704490246838,-500.0,0.00030136,2]
[310350319,1704490246848,-500.0,0.00030136,2]
[310350320,1704490246858,-346.79434592,0.00030136,2]
[310350321,1704490246874,-153.20565408,0.00030136,2]
[310350322,1704490246884,-500.0,0.00030136,2]
[310350323,1704490246895,-441.00339592,0.00030136,2]
[310350324,1704490246908,-58.99660408,0.00030136,2]
[310350325,1704490246918,-500.0,0.00030136,2]
[310350326,1704490246928,-500.0,0.00030136,2]
[310350327,1704490246938,-474.95806907,0.00030136,2]
[310350328,1704490246951,-25.04193093,0.00030136,2]
[310350329,1704490246962,-500.0,0.00030136,2]
[310350330,1704490246971,-481.75806907,0.00030136,2]
[310350331,1704490247022,-18.24193093,0.00030136,2]
[310350332,1704490247032,-723.43,0.00030136,2]
[310350333,1704490247042,-398.47717823,0.00030136,2]
[310350334,1704490247055,-101.52282177,0.00030136,2]
[310350335,1704490247066,-440.47717823,0.00030136,2]
[310350336,1704490247168,-59.52282177,0.00030136,2]
[310350337,1704490247179,-500.0,0.00030136,2]
[310350338,1704490247189,-306.75258803,0.00030136,2]
[310350339,1704490247498,2608.7820267,0.00022999,2]
[310350341,1704490745253,157.58,0.00026525,120]
[310350361,1704491432317,-313.44611819,0.0002446,2]
[310350362,1704491432326,-1737.38060558,0.0002446,2]
[310350363,1704491432470,-509.88676327,0.0002446,2]
[310350364,1704491432481,-5784.68236053,0.0002446,2]
[310350384,1704491438132,-2094.01118884,0.0002446,2]
[310350385,1704491438185,-370.87515053,0.0002446,2]
[310350386,1704491438196,-553.00582169,0.00024461,2]
[310350387,1704491438208,-559.19420109,0.00024461,2]
[310350388,1704491438218,-7488.80417203,0.00024461,2]
[310350389,1704491438229,-150.0,0.00024461,2]
[310350390,1704491438239,-1434.20455594,0.00024462,2]
[310350391,1704491438355,-1174.57747076,0.00024462,2]
[310350392,1704491438367,-7158.55390471,0.00024462,2]
[310350393,1704491438507,-1712.15,0.00024462,2]
[310350394,1704491438521,-606.70110647,0.00024462,2]
[310350395,1704491438535,-841.77750463,0.00024462,2]
[310350396,1704491438553,-367.26527041,0.00024462,2]
[310350397,1704491438567,-12619.05519175,0.00024462,2]
[310350398,1704491438589,-3847.59385649,0.00024462,2]
[310350399,1704491438602,-6146.3391682,0.00024462,2]
[310350400,1704491438614,-154.37992548,0.00024473,2]
[310350401,1704491438625,-558.39978503,0.00024573,2]
[310350402,1704491438635,-377.4,0.00024705,2]
[310350403,1704491438646,-499.99,0.000248,2]
[310350404,1704491438663,-150.0,0.000248,2]
[310350405,1704491438675,-173.05,0.00025625,2]
[310350406,1704491438685,-154.37992547,0.00025864,2]
[310350407,1704491438698,-1392.74462371,0.00025899,2]
[310350409,1704491438726,-3211.25560341,0.00025899,2]
[310350411,1704491438737,-750.40342458,0.000259,2]
[310350412,1704491438751,-2082.59657542,0.000259,2]
[310350413,1704491438761,-7570.82931061,0.000259,2]
[310350470,1704491443106,-8096.11189008,0.000259,2]
[310350471,1704491443121,-9924.79010227,0.000259,2]
[310350472,1704491443286,-6147.26869704,0.000259,2]
[310350473,1704491443297,-200.0,0.00026525,2]
[310350474,1704491443307,-6654.1,0.00026538,2]
[310350475,1704491443317,-376.42,0.00026547,2]
[310350476,1704491443326,-404.36,0.0002656,2]
[310350477,1704491443336,-250.0,0.00026583,2]
[310350478,1704491443346,-150.0,0.00026591,2]
[310350479,1704491443355,-522.45,0.00026596,2]
[310350480,1704491443367,-181.11,0.00026597,2]
[310350481,1704491443377,-161.12,0.00026618,10]
[310350482,1704491443386,-1197.02,0.00026618,2]
[310350483,1704491443397,-200.0,0.00026628,2]
[310350484,1704491443407,-250.0,0.00026666,2]
[310350485,1704491443417,-200.0,0.00026671,2]
[310350486,1704491443427,-154.21,0.00026671,2]
[310350487,1704491443436,-150.0,0.00026672,2]
[310350488,1704491443445,-477.55,0.00026739,2]
[310350489,1704491443455,-206.0,0.00026854,2]
[310350490,1704491443465,-162.99,0.00026863,2]
[310350491,1704491443474,-159.8,0.00026876,2]
[310350492,1704491443483,-377.4,0.00026969,2]
[310350493,1704491443493,-1250.0,0.00027,3]
[310350494,1704491443503,-154.21,0.00027005,2]
[310350495,1704491443513,-159.8,0.000271,2]
[310350496,1704491443523,-156.02,0.00027142,2]
[310350497,1704491443533,-333.40106,0.00027148,2]
[310350498,1704491443542,-333.40106,0.00027248,2]
[310350499,1704491443552,-154.37992547,0.00027255,2]
[310350500,1704491443562,-159.8,0.00027324,2]
[310350501,1704491443571,-154.21,0.00027338,2]
[310350502,1704491443582,-333.40106,0.00027348,2]
[310350503,1704491443592,-250.0,0.00027397,2]
[310350504,1704491443602,-161.39,0.00027397,2]
[310350505,1704491443611,-250.0,0.000274,2]
[310350506,1704491443622,-333.40106,0.00027448,2]
[310350507,1704491443632,-376.42,0.00027526,2]
[310350508,1704491443642,-558.39978502,0.00027543,2]
[310350509,1704491443652,-1068.7809,0.00027543,2]
[310350510,1704491443662,-333.40106,0.00027548,2]
[310350511,1704491443672,-159.8,0.00027548,2]
[310350512,1704491443681,-161.39,0.00027601,2]
[310350513,1704491443692,-11853.63094605,0.00027643,2]
[310350514,1704491443701,-1007.60992389,0.00027645,2]
[310350515,1704491443711,-620.68243241,0.00027646,2]
[310350516,1704491443720,-3180.04163262,0.00027646,2]
[310350517,1704491443729,-333.40106,0.00027648,2]
[310350518,1704491443739,-154.21,0.00027672,2]
[310350519,1704491443749,-333.40106,0.00027748,2]
[310350520,1704491443758,-159.8,0.00027772,2]
[310350521,1704491443768,-161.39,0.00027804,2]
[310350522,1704491443777,-721.83,0.00027814,2]
[310350523,1704491443786,-333.40106,0.00027848,2]
[310350524,1704491443797,-8950.5,0.00027945,2]
[310350525,1704491443806,-169.72,0.00027945,2]
[310350526,1704491443816,-333.40106,0.00027948,2]
[310350527,1704491443826,-159.8,0.00027996,2]
[310350528,1704491443835,-213.56984508,0.00028,2]
[310350529,1704491443856,-154.21,0.00028005,2]
[310350530,1704491443868,-161.39,0.00028008,2]
[310350531,1704491443878,-333.40106,0.00028048,2]
[310350532,1704491443888,-333.40106,0.00028148,2]
[310350533,1704491443897,-1026.0,0.00028187,2]
[310350534,1704491443908,-151.0,0.00028187,2]
[310350535,1704491443917,-152.458,0.00028187,2]
[310350536,1704491443927,-151.531,0.00028187,2]